bitfinex/quotes_SOLUSD_20230702
["timestamp","ask_amount","ask_price","bid_price","bid_amount"]
[1688340784415,21.653,19.535,19.529,21.659]
[1688340785500,55.0,19.534,19.521,21.667]
[1688340785701,179.158,19.531,19.515,55.801]
[1688340785897,179.158,19.531,19.517,41.672]
[1688340786200,77.434,19.527,19.517,41.672]
[1688340786510,55.0,19.53,19.513,21.677]
[1688340786511,21.666,19.524,19.513,21.677]
[1688340786801,21.666,19.524,19.509,55.817]
[1688340786994,77.459,19.52,19.512,21.678]
[1688340787191,21.673,19.517,19.51,21.68]
[1688340788996,21.673,19.517,19.507,90.8413]
[1688340788997,55.0,19.516,19.508,21.682]
[1688340789308,21.677,19.514,19.508,21.682]
[1688340795315,55.0,19.516,19.508,21.682]
[1688340795811,55.0,19.517,19.508,21.682]
[1688340796009,81.75156157,19.522,19.508,21.682]
[1688340796207,21.674,19.517,19.508,21.682]
[1688340801015,55.0,19.516,19.508,21.682]
[1688340801220,76.675,19.516,19.508,21.682]
[1688340802516,132.475,19.516,19.506,21.684]
[1688340802820,234.288,19.516,19.504,21.687]
[1688340803011,234.288,19.516,19.501,21.69]
[1688340803210,244.72611727,19.516,19.501,21.69]
[1688340804107,244.72611727,19.516,19.497,55.852]
[1688340804315,10.43811727,19.515,19.5,21.692]
[1688340804501,179.345,19.51,19.5,21.692]
[1688340804696,21.685,19.507,19.5,21.692]
[1688340804898,123.545,19.507,19.497,21.695]
[1688340805102,21.688,19.504,19.497,21.695]
[1688340805314,21.691,19.501,19.496,21.696]
[1688340806620,21.69,19.502,19.496,21.696]
[1688340806821,21.688,19.503,19.496,21.696]
[1688340807715,21.686,19.505,19.496,21.696]
[1688340808012,157.665,19.51,19.499,21.692]
[1688340808013,21.685,19.506,19.499,21.692]
[1688340809834,21.685,19.506,19.494,55.861]
[1688340810023,21.691,19.502,19.492,97.4728]
[1688340810328,21.694,19.499,19.494,21.698]
[1688340810820,101.856,19.508,19.494,21.698]
[1688340811017,21.688,19.504,19.494,21.698]
[1688340811436,55.864,19.509,19.494,21.698]
[1688340811719,77.546,19.509,19.499,77.541]
[1688340811908,21.682,19.509,19.499,21.693]
[1688340813112,55.0,19.508,19.499,21.693]
[1688340813313,21.685,19.507,19.499,21.693]
[1688340814421,55.0,19.508,19.499,21.693]
[1688340814624,76.684,19.508,19.499,21.693]
[1688340814924,55.0,19.508,19.499,21.693]
[1688340815125,55.0,19.509,19.499,21.693]
[1688340815426,76.682,19.509,19.499,21.693]
[1688340815926,21.681,19.51,19.499,21.693]
[1688340816918,55.0,19.509,19.499,21.693]
[1688340817119,21.684,19.508,19.499,21.693]
[1688340817519,55.0,19.507,19.499,21.693]
[1688340817721,21.687,19.505,19.499,21.693]
[1688340821231,21.685,19.506,19.499,21.693]
[1688340821619,55.0,19.505,19.495,55.858]
[1688340821819,21.688,19.504,19.499,21.692]
[1688340823015,21.688,19.504,19.495,55.858]
[1688340823332,21.688,19.504,19.497,21.695]
[1688340823531,21.688,19.504,19.493,98.114]
[1688340823532,55.0,19.503,19.494,21.698]
[1688340823718,77.536,19.501,19.493,98.114]
[1688340823924,55.0,19.5,19.493,98.114]
[1688340824236,21.694,19.498,19.493,98.114]
[1688340824529,21.694,19.498,19.492,21.7]
[1688340825835,55.0,19.497,19.487,99.3758]
[1688340826028,21.698,19.494,19.49,21.702]
[1688340826430,21.698,19.494,19.487,121.0818]
[1688340826727,21.701,19.492,19.488,20.0]
[1688340827315,21.701,19.492,19.485,10.83719922]
[1688340827516,76.703,19.491,19.487,21.706]
[1688340827821,55.859,19.496,19.489,21.704]
[1688340828019,21.699,19.494,19.489,21.704]
[1688340828221,55.0,19.493,19.489,21.704]
[1688340828833,76.7,19.493,19.489,21.704]
[1688340829031,76.7,19.493,19.482,101.987]
[1688340829032,76.7,19.493,19.482,55.895]
[1688340829234,76.7,19.493,19.485,21.707]
[1688340829829,178.634,19.493,19.478,99.3288]
[1688340830039,178.634,19.493,19.48,21.714]
[1688340831137,178.634,19.493,19.478,99.3288]
[1688340831335,178.634,19.493,19.478,121.0438]
[1688340832031,178.634,19.493,19.478,21.715]
[1688340832237,21.82,19.49,19.472,10.83719922]
[1688340832436,21.82,19.49,19.468,102.064]
[1688340832437,77.599,19.485,19.473,21.721]
[1688340832742,77.599,19.485,19.465,88.7309]
[1688340832925,77.599,19.485,19.466,20.0]
[1688340833119,21.716,19.479,19.473,21.722]
[1688340836746,21.716,19.479,19.472,21.723]
[1688340836936,55.0,19.478,19.466,20.0]
[1688340837125,21.72,19.475,19.469,21.726]
[1688340837327,21.72,19.475,19.468,21.727]
[1688340838224,21.718,19.477,19.468,21.727]
[1688340841327,55.902,19.485,19.47,21.99]
[1688340841537,21.714,19.48,19.474,21.72]
[1688340843525,157.851,19.487,19.474,21.72]
[1688340843729,21.711,19.483,19.474,21.72]
[1688340845234,21.711,19.483,19.445,26.70664786]
[1688340845235,21.711,19.483,19.466,55.941]
[1688340845541,77.626,19.478,19.47,21.724]
[1688340845845,77.626,19.478,19.469,21.726]
[1688340846046,55.0,19.477,19.469,21.726]
[1688340846353,21.72,19.475,19.467,21.728]
[1688340846645,21.723,19.472,19.465,110.4609]
[1688340847751,55.0,19.474,19.465,88.7309]
[1688340847951,21.723,19.472,19.465,21.73]
[1688340848649,21.723,19.472,19.461,94.8391]
[1688340848823,21.723,19.472,19.465,21.731]
[1688340850245,21.722,19.473,19.465,21.731]
[1688340851140,21.721,19.474,19.465,21.731]
[1688340851541,55.915,19.478,19.461,94.8391]
[1688340851743,21.721,19.474,19.465,21.731]
[1688340853347,21.721,19.474,19.466,20.0]
[1688340853532,21.721,19.474,19.468,21.727]
[1688340854937,21.731,19.478,19.468,21.727]
[1688340855140,21.716,19.479,19.468,21.727]
[1688340855345,21.716,19.479,19.469,20.0]
[1688340855535,21.716,19.479,19.472,21.723]
[1688340855736,21.714,19.48,19.472,21.723]
[1688340855949,21.716,19.479,19.472,21.723]
[1688340858054,101.985,19.484,19.472,21.723]
[1688340858055,21.718,19.477,19.472,21.723]
[1688340858247,76.72,19.476,19.472,21.723]
[1688340858450,21.72,19.476,19.472,21.723]
[1688340860154,55.0,19.475,19.472,21.723]
[1688340860551,21.715,19.48,19.472,21.723]
[1688340860758,81.76847126,19.486,19.472,21.723]
[1688340860933,21.723,19.484,19.472,21.723]
[1688340861138,55.0,19.483,19.472,21.723]
[1688340862146,21.713,19.482,19.472,21.723]
[1688340862346,55.0,19.481,19.472,21.723]
[1688340862659,76.713,19.481,19.472,21.723]
[1688340867947,21.713,19.481,19.472,21.723]
[1688340868257,26.84225198,19.482,19.472,21.723]
[1688340868552,43.433,19.484,19.472,21.723]
[1688340868757,21.71,19.484,19.472,21.723]
[1688340871143,111.758,19.489,19.472,21.723]
[1688340871346,75.0,19.488,19.473,55.0]
[1688340871558,21.708,19.486,19.477,77.627]
[1688340872664,21.706,19.488,19.477,77.627]
[1688340872856,26.83405536,19.492,19.482,77.609]
[1688340873450,21.703,19.49,19.482,77.609]
[1688340873679,21.703,19.49,19.482,21.712]
[1688340874469,55.0,19.489,19.482,21.712]
[1688340874671,21.706,19.487,19.482,21.712]
[1688340875467,21.705,19.488,19.482,21.712]
[1688340876358,21.704,19.49,19.482,21.712]
[1688340885377,21.702,19.492,19.482,21.712]
[1688340895783,21.7,19.493,19.482,21.712]
[1688340899697,101.884,19.503,19.482,21.712]
[1688340899996,21.697,19.495,19.486,21.707]
[1688340901994,55.0,19.494,19.486,21.707]
[1688340902184,21.701,19.492,19.486,21.707]
[1688340903781,21.701,19.492,19.484,21.709]
[1688340903976,21.704,19.489,19.481,21.713]
[1688340904176,21.708,19.486,19.479,119.6962]
[1688340904382,21.708,19.486,19.479,21.715]
[1688340906890,21.706,19.488,19.479,77.621]
[1688340907281,21.706,19.488,19.479,88.45819922]
[1688340908200,55.0,19.494,19.48,10.83719922]
[1688340908379,21.701,19.492,19.483,77.602]
[1688340908582,21.7,19.493,19.483,77.602]
[1688340910994,55.0,19.492,19.483,77.602]
[1688340911301,21.703,19.49,19.483,77.602]
[1688340916504,76.702,19.492,19.483,77.602]
[1688340916690,21.697,19.495,19.483,88.43919922]
[1688340916889,55.0,19.494,19.483,88.43919922]
[1688340917412,76.699,19.494,19.483,88.43919922]
[1688340918002,21.699,19.494,19.483,88.43919922]
[1688340918197,21.697,19.495,19.484,10.83719922]
[1688340918502,21.697,19.495,19.487,77.587]
[1688340922296,21.697,19.495,19.487,21.705]
[1688340922498,55.0,19.494,19.486,21.707]
[1688340922702,21.701,19.492,19.486,21.707]
[1688340929519,21.701,19.492,19.485,21.708]
[1688340930896,55.0,19.491,19.485,21.708]
[1688340931098,21.704,19.49,19.485,21.708]
[1688340933019,21.704,19.49,19.484,21.709]
[1688340937438,21.706,19.488,19.479,21.714]
[1688340937607,21.706,19.488,19.474,102.028]
[1688340937803,21.706,19.488,19.48,21.714]
[1688340940510,55.0,19.487,19.48,21.714]
[1688340940713,76.707,19.487,19.48,21.714]
[1688340941218,55.0,19.487,19.48,21.714]
[1688340942025,21.704,19.489,19.48,21.714]
[1688340944945,21.703,19.49,19.48,21.714]
[1688340945118,55.0,19.489,19.48,21.714]
[1688340946826,76.704,19.489,19.48,21.714]
[1688340948939,55.0,19.489,19.48,21.714]
[1688340949141,76.704,19.489,19.48,21.714]
[1688340949621,55.0,19.489,19.48,21.714]
[1688340950326,76.704,19.489,19.48,21.714]
[1688340962929,21.702,19.491,19.48,21.714]
[1688340963542,55.0,19.49,19.48,21.714]
[1688340964326,76.704,19.49,19.48,21.714]
[1688340975652,76.704,19.49,19.48,43.474]
[1688340975861,55.0,19.49,19.48,43.474]
[1688340976743,136.10189212,19.494,19.48,43.474]
[1688340977042,55.863,19.494,19.48,43.474]
[1688340977239,21.703,19.49,19.48,43.474]
[1688340984148,21.707,19.487,19.48,43.474]
[1688340985854,21.707,19.487,19.471,55.926]
[1688340986058,77.609,19.483,19.473,21.721]
[1688340986249,21.715,19.48,19.473,21.721]
[1688340987352,21.715,19.48,19.472,21.723]
[1688340987561,21.718,19.477,19.471,21.724]
[1688340990042,55.0,19.476,19.468,21.727]
[1688340990253,55.0,19.476,19.464,55.947]
[1688340990254,21.721,19.474,19.467,21.728]
[1688340990448,55.0,19.473,19.466,21.729]
[1688340990661,21.724,19.471,19.464,21.731]
[1688340991173,21.724,19.471,19.462,21.734]
[1688340991470,21.728,19.468,19.461,112.7677]
[1688340991647,21.728,19.468,19.461,21.735]
[1688340992472,55.0,19.47,19.461,21.735]
[1688340992973,21.727,19.469,19.461,21.735]
[1688340993257,77.662,19.469,19.46,21.736]
[1688340993467,21.732,19.465,19.461,21.735]
[1688340994761,21.97,19.47,19.461,21.735]
[1688340994967,21.726,19.469,19.461,21.735]
[1688340996574,55.0,19.468,19.461,21.735]
[1688340996864,21.73,19.466,19.461,21.735]
[1688340997662,55.932,19.47,19.461,21.735]
[1688340997663,21.729,19.467,19.461,21.735]
[1688340997864,21.726,19.47,19.461,21.735]
[1688340998063,76.727,19.469,19.461,21.735]
[1688340999251,21.727,19.469,19.461,21.735]
[1688340999457,55.0,19.468,19.461,21.735]
[1688340999658,21.729,19.467,19.461,21.735]
[1688340999863,55.0,19.466,19.461,21.735]
[1688341000063,76.73,19.466,19.461,21.735]
[1688341000754,21.727,19.469,19.461,21.735]
[1688341001270,21.727,19.469,19.461,21.235]
[1688341003056,55.0,19.468,19.461,21.235]
[1688341003362,21.73,19.466,19.461,21.235]
[1688341003760,76.728,19.468,19.461,21.235]
[1688341003966,55.0,19.468,19.461,21.235]
[1688341005172,55.925,19.473,19.461,21.235]
[1688341005352,21.724,19.471,19.461,21.235]
[1688341005556,21.723,19.473,19.461,21.235]
[1688341007479,55.0,19.472,19.461,21.235]
[1688341007675,21.727,19.469,19.461,21.235]
[1688341008062,157.948,19.475,19.461,21.235]
[1688341008063,21.724,19.471,19.461,21.235]
[1688341008463,55.914,19.477,19.461,21.235]
[1688341008464,55.916,19.476,19.461,21.235]
[1688341009882,55.0,19.475,19.461,21.235]
[1688341010176,21.723,19.472,19.461,21.235]
[1688341010371,21.727,19.469,19.461,21.235]
[1688341015081,21.727,19.469,19.461,20.735]
[1688341020185,55.0,19.468,19.461,20.735]
[1688341020482,21.729,19.467,19.461,20.735]
[1688341021685,157.939,19.476,19.461,20.735]
[1688341021987,21.722,19.474,19.461,20.735]
[1688341025484,55.0,19.473,19.461,20.735]
[1688341025690,21.724,19.472,19.461,20.735]
[1688341028081,21.726,19.469,19.461,20.735]
[1688341029484,55.0,19.468,19.461,20.735]
[1688341029693,21.73,19.466,19.461,20.735]
[1688341029984,76.732,19.465,19.461,20.735]
[1688341031482,76.732,19.465,19.457,21.74]
[1688341031689,76.732,19.465,19.458,41.738]
[1688341033067,76.732,19.465,19.456,21.74]
[1688341033269,76.732,19.465,19.448,55.993]
[1688341033470,76.732,19.465,19.445,102.183]
[1688341033471,22.0,19.46,19.445,158.184]
[1688341033686,21.742,19.456,19.449,21.748]
[1688341034069,21.744,19.454,19.449,21.748]
[1688341034273,76.745,19.453,19.449,21.748]
[1688341034475,55.0,19.452,19.449,21.748]
[1688341034880,21.742,19.455,19.449,21.748]
[1688341035081,55.0,19.454,19.449,21.748]
[1688341038191,55.0,19.455,19.449,21.748]
[1688341038572,76.742,19.455,19.449,21.748]
[1688341038777,76.742,19.455,19.447,21.75]
[1688341040282,76.742,19.455,19.446,21.752]
[1688341041191,26.87943492,19.454,19.446,21.752]
[1688341041381,21.746,19.452,19.446,21.752]
[1688341041581,55.0,19.451,19.446,21.752]
[1688341041782,76.747,19.451,19.446,21.752]
[1688341041989,21.747,19.451,19.446,21.752]
[1688341045388,21.75,19.449,19.444,21.753]
[1688341046294,21.75,19.449,19.442,56.01]
[1688341046295,21.75,19.449,19.442,21.756]
[1688341046996,21.752,19.447,19.442,21.756]
[1688341047393,21.752,19.447,19.44,21.758]
[1688341048186,55.0,19.446,19.431,91.3728]
[1688341048493,21.757,19.442,19.436,19.263]
[1688341049902,21.757,19.442,19.435,21.764]
[1688341050117,21.757,19.442,19.427,122.275]
[1688341050118,55.0,19.441,19.433,21.766]
[1688341050403,21.76,19.439,19.433,21.766]
[1688341051103,56.008,19.445,19.433,21.766]
[1688341051283,55.999,19.447,19.433,21.766]
[1688341051484,21.756,19.443,19.433,21.766]
[1688341052992,21.756,19.443,19.433,20.766]
[1688341053506,55.0,19.442,19.433,20.766]
[1688341053800,21.76,19.44,19.431,21.769]
[1688341054001,21.763,19.437,19.431,21.769]
[1688341056202,21.762,19.437,19.431,21.769]
[1688341056389,157.198,19.443,19.431,21.769]
[1688341056390,21.761,19.438,19.431,21.769]
[1688341058201,21.759,19.44,19.431,21.769]
[1688341059196,21.758,19.441,19.431,21.769]
[1688341059401,102.179,19.447,19.431,21.769]
[1688341059717,55.0,19.446,19.431,21.769]
[1688341060098,21.759,19.44,19.431,21.769]
[1688341062519,55.0,19.439,19.431,21.769]
[1688341062812,21.763,19.437,19.431,21.769]
[1688341063105,21.765,19.435,19.431,21.769]
[1688341064811,76.763,19.436,19.431,21.769]
[1688341065607,76.763,19.436,19.425,56.059]
[1688341065808,76.763,19.436,19.431,21.768]
[1688341068411,76.763,19.436,19.42,22.23]
[1688341068613,76.763,19.436,19.427,21.773]
[1688341069421,76.763,19.436,19.422,56.068]
[1688341069917,76.763,19.436,19.424,21.776]
[1688341070117,87.31768015,19.436,19.423,21.778]
[1688341070318,10.55468015,19.435,19.41,21.96]
[1688341070516,21.771,19.429,19.422,21.778]
[1688341071020,21.774,19.427,19.422,21.778]
[1688341071220,76.775,19.426,19.422,21.778]
[1688341071409,3.0,19.456,19.422,21.778]
[1688341071605,55.0,19.439,19.422,21.778]
[1688341071799,124.011,19.434,19.422,21.778]
[1688341072022,55.0,19.433,19.422,21.778]
[1688341072218,21.77,19.43,19.422,21.778]
[1688341072419,55.0,19.429,19.422,21.778]
[1688341072724,76.772,19.429,19.422,21.778]
[1688341075110,21.77,19.43,19.422,21.778]
[1688341075309,55.0,19.431,19.422,21.778]
[1688341075820,21.767,19.433,19.422,21.778]
[1688341076602,55.0,19.432,19.422,21.778]
[1688341076808,21.769,19.431,19.422,21.778]
[1688341077102,21.773,19.428,19.422,21.778]
[1688341077528,21.771,19.429,19.422,21.778]
[1688341077819,21.771,19.43,19.422,21.778]
[1688341078005,55.0,19.429,19.422,21.778]
[1688341078907,76.772,19.429,19.422,21.778]
[1688341080117,26.90841267,19.433,19.422,21.778]
[1688341080326,55.0,19.432,19.422,21.778]
[1688341080624,21.768,19.432,19.422,21.778]
[1688341081825,21.771,19.43,19.422,21.778]
[1688341082022,55.0,19.429,19.422,21.778]
[1688341082224,21.773,19.427,19.422,21.778]
[1688341082415,21.776,19.425,19.422,21.778]
[1688341083912,21.775,19.426,19.422,21.778]
[1688341084112,55.0,19.425,19.422,21.778]
[1688341085633,56.041,19.433,19.422,21.778]
[1688341085930,21.769,19.431,19.422,21.778]
[1688341086231,81.62106307,19.434,19.422,21.778]
[1688341086232,56.027,19.434,19.422,21.778]
[1688341086522,56.024,19.439,19.422,21.778]
[1688341086729,56.024,19.439,19.422,121.6762]
[1688341087026,21.765,19.435,19.422,121.6762]
[1688341087331,21.761,19.438,19.422,121.6762]
[1688341087557,56.006,19.445,19.423,20.0]
[1688341087827,21.758,19.441,19.429,180.084]
[1688341090533,21.758,19.441,19.429,77.818]
[1688341090718,21.762,19.437,19.429,21.77]
[1688341090911,21.766,19.434,19.429,21.77]
[1688341091329,56.027,19.437,19.429,21.77]
[1688341091330,21.768,19.432,19.429,21.77]
[1688341091637,56.027,19.437,19.428,21.772]
[1688341091928,21.767,19.434,19.428,21.772]
[1688341092331,55.0,19.433,19.428,21.772]
[1688341092947,76.767,19.433,19.428,21.772]
[1688341093234,76.767,19.433,19.427,21.773]
[1688341096525,76.767,19.433,19.426,21.774]
[1688341100132,21.765,19.435,19.426,21.774]
[1688341101247,56.026,19.436,19.427,20.0]
[1688341101446,21.762,19.438,19.429,77.818]
[1688341102242,21.76,19.44,19.429,77.818]
[1688341102440,76.76,19.439,19.429,77.818]
[1688341106434,21.76,19.439,19.429,77.818]
[1688341107034,55.0,19.438,19.429,77.818]
[1688341107335,21.763,19.437,19.429,77.818]
[1688341108536,21.762,19.437,19.429,77.818]
[1688341108742,55.0,19.436,19.429,77.818]
[1688341109943,76.764,19.436,19.429,77.818]
[1688341110649,76.764,19.436,19.429,77.318]
[1688341113051,21.762,19.438,19.429,77.318]
[1688341113234,21.76,19.439,19.429,77.318]
[1688341113431,55.0,19.438,19.429,77.318]
[1688341114962,76.761,19.438,19.429,77.318]
[1688341115663,82.299153,19.442,19.429,77.318]
[1688341115949,22.09,19.45,19.429,77.318]
[1688341116160,21.754,19.445,19.435,77.794]
[1688341116737,21.754,19.445,19.435,21.764]
[1688341117033,77.753,19.445,19.435,21.764]
[1688341117439,21.757,19.442,19.435,21.764]
[1688341117639,21.76,19.44,19.435,21.764]
[1688341118451,21.762,19.438,19.434,21.765]
[1688341119244,76.76,19.439,19.434,21.765]
[1688341119640,21.758,19.441,19.434,21.765]
[1688341122660,44.66413043,19.457,19.434,124.008]
[1688341122661,26.11838312,19.446,19.434,124.008]
[1688341123157,82.891877,19.447,19.434,124.008]
[1688341123744,21.753,19.445,19.434,124.008]
[1688341123944,10.55468015,19.451,19.434,124.008]
[1688341123945,22.04,19.46,19.434,124.008]
[1688341124150,77.715,19.456,19.435,10.83719922]
[1688341124467,21.745,19.453,19.444,21.754]
[1688341125048,48.629276,19.453,19.444,21.754]
[1688341126143,76.746,19.452,19.444,21.754]
[1688341127860,76.746,19.452,19.443,21.755]
[1688341128059,76.746,19.452,19.442,21.756]
[1688341128462,76.746,19.452,19.441,21.758]
[1688341128760,22.09,19.45,19.435,56.031]
[1688341128966,21.753,19.446,19.439,21.759]
[1688341129350,55.0,19.445,19.439,21.759]
[1688341129547,21.755,19.444,19.438,21.761]
[1688341129750,55.0,19.443,19.438,21.761]
[1688341130052,21.757,19.442,19.438,21.761]
[1688341132771,21.757,19.442,19.437,21.762]
[1688341134775,21.757,19.442,19.435,21.763]
[1688341134959,55.0,19.441,19.435,21.763]
[1688341135266,21.76,19.44,19.435,21.763]
[1688341135873,55.0,19.441,19.435,21.763]
[1688341136074,76.758,19.441,19.435,21.763]
[1688341138177,21.756,19.443,19.435,21.763]
[1688341139975,55.0,19.442,19.435,21.763]
[1688341140172,21.759,19.44,19.435,21.763]
[1688341143782,55.0,19.439,19.431,98.8442]
[1688341143974,21.762,19.437,19.433,21.766]
[1688341147089,21.761,19.438,19.433,21.766]
[1688341147377,55.0,19.439,19.433,21.766]
[1688341147765,21.758,19.441,19.433,21.766]
[1688341151080,21.76,19.439,19.433,21.766]
[1688341151980,55.0,19.44,19.433,21.766]
[1688341153986,55.0,19.445,19.433,21.766]
[1688341154278,55.0,19.445,19.433,32.60319922]
[1688341154662,44.66413043,19.459,19.437,180.014]
[1688341154663,21.747,19.451,19.437,180.014]
[1688341155078,21.745,19.453,19.442,179.967]
[1688341156283,77.719,19.453,19.442,179.967]
[1688341156481,55.0,19.452,19.442,179.967]
[1688341156689,76.746,19.452,19.442,179.967]
[1688341157673,21.744,19.454,19.442,179.967]
[1688341157877,55.965,19.459,19.442,179.967]
[1688341158079,21.742,19.455,19.442,179.967]
[1688341158281,55.965,19.454,19.442,179.967]
[1688341158583,77.708,19.454,19.442,179.967]
[1688341159092,55.0,19.453,19.442,179.967]
[1688341159483,55.965,19.454,19.442,179.967]
[1688341159687,21.742,19.455,19.442,179.967]
[1688341160571,55.965,19.456,19.442,190.80419922]
[1688341160880,55.965,19.456,19.451,179.879]
[1688341161081,55.943,19.467,19.451,179.879]
[1688341161082,21.733,19.463,19.451,179.879]
[1688341161283,21.733,19.463,19.456,21.74]
[1688341162091,21.733,19.463,19.455,21.742]
[1688341162289,47.74598,19.463,19.455,21.742]
[1688341163072,76.735,19.462,19.455,21.742]
[1688341167295,75.735,19.462,19.455,21.742]
[1688341169699,54.0,19.462,19.455,21.742]
[1688341169888,55.93,19.471,19.455,21.742]
[1688341170111,75.0,19.47,19.455,21.742]
[1688341170901,21.73,19.467,19.455,21.742]
[1688341172586,55.0,19.466,19.455,21.742]
[1688341172886,21.733,19.464,19.455,21.742]
[1688341173080,55.0,19.463,19.455,21.742]
[1688341173288,21.735,19.461,19.455,21.742]
[1688341173799,55.0,19.46,19.455,21.742]
[1688341174006,76.737,19.46,19.455,21.742]
[1688341175387,76.737,19.46,19.452,85.6854]
[1688341175702,76.737,19.46,19.453,21.743]
[1688341180109,76.737,19.46,19.451,21.746]
[1688341180399,20.0,19.459,19.45,21.747]
[1688341180608,21.741,19.457,19.45,21.747]
[1688341180907,55.0,19.456,19.449,21.748]
[1688341181088,21.743,19.454,19.449,21.748]
[1688341181396,21.743,19.454,19.445,96.5841]
[1688341181599,21.746,19.452,19.448,21.75]
[1688341183701,21.746,19.452,19.445,96.5841]
[1688341184006,21.746,19.452,19.447,21.751]
[1688341184516,26.14252456,19.467,19.447,123.926]
[1688341184801,21.741,19.457,19.443,56.007]
[1688341185007,21.741,19.457,19.447,21.751]
[1688341185394,77.748,19.457,19.447,21.751]
[1688341186008,21.744,19.454,19.447,21.751]
[1688341186209,21.746,19.452,19.447,21.751]
[1688341186590,55.0,19.451,19.447,21.751]
[1688341186796,76.747,19.451,19.443,56.007]
[1688341187108,76.747,19.451,19.445,21.752]
[1688341187812,76.747,19.451,19.441,21.757]
[1688341188113,76.747,19.451,19.434,102.24]
[1688341188114,21.754,19.445,19.434,56.034]
[1688341188310,21.754,19.445,19.431,97.3648]
[1688341188615,21.754,19.445,19.433,21.766]
[1688341188616,55.0,19.444,19.433,21.766]
[1688341188922,21.758,19.441,19.433,21.766]
[1688341189092,55.0,19.44,19.433,21.766]
[1688341190594,76.759,19.44,19.433,21.766]
[1688341194508,76.759,19.44,19.431,97.3648]
[1688341194710,76.759,19.44,19.431,119.1328]
[1688341195411,76.759,19.44,19.431,21.768]
[1688341199914,76.759,19.44,19.423,56.067]